[Event "Late-Titled-Tuesday-Blitz-March-19-2024"]
[Site "Chess.com"]
[Date "2024.03.19"]
[Round "10"]
[White "Bastiandash"]
[Black "VD_coach"]
[Result "1-0"]
[WhiteElo "2606"]
[BlackElo "2510"]
[TimeControl "180+1"]
[EndTime "15:54:14 PDT"]
[Termination "Bastiandash won on time"]

1. e4 {[%clk 0:03:00.9]} 1... c5 {[%clk 0:02:59.5]} 2. b3 {[%clk 0:02:46.3]}
2... Nf6 {[%clk 0:02:55.7]} 3. e5 {[%clk 0:02:43.9]} 3... Nd5 {[%clk 0:02:55.3]}
4. Bb2 {[%clk 0:02:44.8]} 4... e6 {[%clk 0:02:51.1]} 5. Nc3 {[%clk 0:02:44.6]}
5... Nxc3 {[%clk 0:02:49.8]} 6. dxc3 {[%clk 0:02:44.7]} 6... d5 {[%clk
0:02:49.6]} 7. exd6 {[%clk 0:02:44.8]} 7... Qxd6 {[%clk 0:02:48.9]} 8. Bd3
{[%clk 0:02:44.5]} 8... Be7 {[%clk 0:02:45.4]} 9. Nf3 {[%clk 0:02:40.3]} 9...
Nc6 {[%clk 0:02:44.7]} 10. Qe2 {[%clk 0:02:41.2]} 10... Qf4 {[%clk 0:02:38.5]}
11. g3 {[%clk 0:02:38.6]} 11... Qh6 {[%clk 0:02:36.5]} 12. Bc1 {[%clk
0:02:25.9]} 12... Qf6 {[%clk 0:02:35.4]} 13. Bb2 {[%clk 0:02:26]} 13... Qh6
{[%clk 0:02:35.1]} 14. h4 {[%clk 0:02:21.5]} 14... Bd7 {[%clk 0:02:31.7]} 15.
Bc1 {[%clk 0:02:10.4]} 15... Qf6 {[%clk 0:02:30.4]} 16. Bb2 {[%clk 0:02:08.5]}
16... Qh6 {[%clk 0:02:26.8]} 17. Bc1 {[%clk 0:01:56.2]} 17... Qf6 {[%clk
0:02:25.3]} 18. Bd2 {[%clk 0:01:56.9]} 18... h6 {[%clk 0:02:15.9]} 19. O-O-O
{[%clk 0:01:56.1]} 19... O-O-O {[%clk 0:02:11.1]} 20. Kb2 {[%clk 0:01:42.9]}
20... Nb4 {[%clk 0:01:29.7]} 21. Be4 {[%clk 0:01:41.6]} 21... Bc6 {[%clk
0:01:29.3]} 22. Bg5 {[%clk 0:01:22.2]} 22... hxg5 {[%clk 0:00:39.6]} 23. hxg5
{[%clk 0:01:23.1]} 23... Rxh1 {[%clk 0:00:32.3]} 24. Rxh1 {[%clk 0:01:19.7]}
24... Bxe4 {[%clk 0:00:15.9]} 25. gxf6 {[%clk 0:01:17.8]} 25... Bxf3 {[%clk
0:00:16.1]} 26. fxe7 {[%clk 0:01:00.5]} 26... Bxe2 {[%clk 0:00:15.7]} 27.
exd8=Q+ {[%clk 0:01:00.7]} 27... Kxd8 {[%clk 0:00:15.9]} 28. cxb4 {[%clk
0:01:01.6]} 28... cxb4 {[%clk 0:00:16.1]} 29. Rh7 {[%clk 0:01:00.5]} 29... Ke7
{[%clk 0:00:14.9]} 30. Rxg7 {[%clk 0:00:59.7]} 30... a5 {[%clk 0:00:12.6]} 31.
Kc1 {[%clk 0:00:58.4]} 31... Ba6 {[%clk 0:00:12.2]} 32. Kd2 {[%clk 0:00:58.3]}
32... Kf6 {[%clk 0:00:12.3]} 33. Rg8 {[%clk 0:00:58.7]} 33... Ke5 {[%clk
0:00:12.3]} 34. Ke3 {[%clk 0:00:56.8]} 34... f5 {[%clk 0:00:11.3]} 35. f4+
{[%clk 0:00:55.7]} 35... Kd5 {[%clk 0:00:10.6]} 36. Rd8+ {[%clk 0:00:55.5]}
36... Kc5 {[%clk 0:00:10.9]} 37. Rc8+ {[%clk 0:00:45.8]} 37... Kd5 {[%clk
0:00:11]} 38. c4+ {[%clk 0:00:45.1]} 38... bxc3 {[%clk 0:00:09]} 39. Rxc3 {[%clk
0:00:45.6]} 39... b5 {[%clk 0:00:08.8]} 40. Rc7 {[%clk 0:00:45.1]} 40... a4
{[%clk 0:00:06.7]} 41. Ra7 {[%clk 0:00:45.1]} 41... axb3 {[%clk 0:00:06.8]} 42.
axb3 {[%clk 0:00:44.5]} 42... Bc8 {[%clk 0:00:06.9]} 43. Rc7 {[%clk 0:00:42.8]}
43... Ba6 {[%clk 0:00:05.4]} 44. b4 {[%clk 0:00:34.6]} 44... Kd6 {[%clk
0:00:04.6]} 45. Rc5 {[%clk 0:00:35.5]} 45... Kd7 {[%clk 0:00:02.4]} 46. Kd4
{[%clk 0:00:34.4]} 46... Kd6 {[%clk 0:00:02.7]} 47. Rc1 {[%clk 0:00:33.4]} 47...
Bb7 {[%clk 0:00:02.1]} 48. Rc2 {[%clk 0:00:29.7]} 48... Bd5 {[%clk 0:00:01.9]}
49. Rh2 {[%clk 0:00:30.6]} 49... Bc4 {[%clk 0:00:01.7]} 50. Rh8 {[%clk
0:00:27.1]} 1-0

[Event "Late-Titled-Tuesday-Blitz-March-19-2024"]
[Site "Chess.com"]
[Date "2024.03.19"]
[Round "10"]
[White "BebeBonito2022"]
[Black "NovakRatko"]
[Result "1-0"]
[WhiteElo "2309"]
[BlackElo "2405"]
[TimeControl "180+1"]
[EndTime "15:54:19 PDT"]
[Termination "BebeBonito2022 won on time"]

1. d4 {[%clk 0:03:00.9]} 1... d6 {[%clk 0:02:13.5]} 2. e4 {[%clk 0:02:59.6]}
2... e5 {[%clk 0:02:10.6]} 3. dxe5 {[%clk 0:02:58.8]} 3... dxe5 {[%clk
0:02:11.5]} 4. Qxd8+ {[%clk 0:02:59.2]} 4... Kxd8 {[%clk 0:02:12.3]} 5. Nf3
{[%clk 0:02:59.4]} 5... f6 {[%clk 0:02:11.2]} 6. Be3 {[%clk 0:02:53.7]} 6... c6
{[%clk 0:02:10.1]} 7. Nbd2 {[%clk 0:02:52.6]} 7... Be6 {[%clk 0:02:09.9]} 8. Bc4
{[%clk 0:02:52]} 8... Bxc4 {[%clk 0:02:08.1]} 9. Nxc4 {[%clk 0:02:52.9]} 9...
Kc7 {[%clk 0:02:07.2]} 10. O-O-O {[%clk 0:02:52.1]} 10... Nd7 {[%clk 0:01:57.7]}
11. Nfd2 {[%clk 0:02:35.5]} 11... b5 {[%clk 0:01:57.1]} 12. Na5 {[%clk
0:02:33.4]} 12... Bb4 {[%clk 0:01:40.1]} 13. Ndb3 {[%clk 0:02:24.4]} 13... Ne7
{[%clk 0:01:34.1]} 14. a3 {[%clk 0:02:07.8]} 14... Bxa5 {[%clk 0:01:33.4]} 15.
Nxa5 {[%clk 0:02:07.6]} 15... Rhd8 {[%clk 0:01:30.4]} 16. Nb3 {[%clk 0:02:03.1]}
16... a5 {[%clk 0:01:18]} 17. h4 {[%clk 0:01:38.8]} 17... a4 {[%clk 0:01:14.7]}
18. Nc5 {[%clk 0:01:39]} 18... Nxc5 {[%clk 0:01:15]} 19. Bxc5 {[%clk 0:01:39.9]}
19... Ng6 {[%clk 0:01:14.2]} 20. g3 {[%clk 0:01:39.8]} 20... h5 {[%clk
0:01:04.7]} 21. Rxd8 {[%clk 0:01:36.7]} 21... Rxd8 {[%clk 0:01:03.8]} 22. Rd1
{[%clk 0:01:37.3]} 22... Rxd1+ {[%clk 0:01:04]} 23. Kxd1 {[%clk 0:01:38.2]}
23... Kd7 {[%clk 0:00:51.2]} 24. Ke2 {[%clk 0:01:38.4]} 24... Ne7 {[%clk
0:00:48.4]} 25. f4 {[%clk 0:01:11.2]} 25... g6 {[%clk 0:00:42.7]} 26. Kf3 {[%clk
0:01:06.7]} 26... Nc8 {[%clk 0:00:40.4]} 27. g4 {[%clk 0:01:02.7]} 27... hxg4+
{[%clk 0:00:39.1]} 28. Kxg4 {[%clk 0:01:02.9]} 28... exf4 {[%clk 0:00:38.5]} 29.
Kxf4 {[%clk 0:01:03.2]} 29... Ke6 {[%clk 0:00:38.7]} 30. b3 {[%clk 0:00:56.4]}
30... Nd6 {[%clk 0:00:31.3]} 31. Bd4 {[%clk 0:00:41.5]} 31... Nf7 {[%clk
0:00:26.6]} 32. Bc3 {[%clk 0:00:26.2]} 32... Nd6 {[%clk 0:00:24.5]} 33. Bd4
{[%clk 0:00:25.1]} 33... Nb7 {[%clk 0:00:24.1]} 34. b4 {[%clk 0:00:20.6]} 34...
Nd6 {[%clk 0:00:22.8]} 35. Bxf6 {[%clk 0:00:20.9]} 35... Nc4 {[%clk 0:00:16.8]}
36. Kg5 {[%clk 0:00:17.4]} 36... Kf7 {[%clk 0:00:12.8]} 37. e5 {[%clk
0:00:14.7]} 37... Nxa3 {[%clk 0:00:12.8]} 38. e6+ {[%clk 0:00:15]} 38... Kxe6
{[%clk 0:00:13.3]} 39. Kxg6 {[%clk 0:00:15.2]} 39... Nxc2 {[%clk 0:00:13.9]} 40.
h5 {[%clk 0:00:15]} 40... a3 {[%clk 0:00:04.9]} 41. h6 {[%clk 0:00:15.2]} 41...
a2 {[%clk 0:00:01.7]} 42. h7 {[%clk 0:00:15.4]} 42... Nxb4 {[%clk 0:00:01.6]}
43. h8=Q {[%clk 0:00:14.4]} 43... Kd5 {[%clk 0:00:01.6]} 44. Ba1 {[%clk
0:00:14.2]} 1-0

[Event "Late-Titled-Tuesday-Blitz-March-19-2024"]
[Site "Chess.com"]
[Date "2024.03.19"]
[Round "10"]
[White "Vaathi_Coming"]
[Black "Evandro_Barbosa"]
[Result "0-1"]
[WhiteElo "2876"]
[BlackElo "2749"]
[TimeControl "180+1"]
[EndTime "15:54:20 PDT"]
[Termination "Evandro_Barbosa won on time"]

1. g3 {[%clk 0:03:00.9]} 1... c5 {[%clk 0:02:58.4]} 2. Bg2 {[%clk 0:03:00.5]}
2... Nc6 {[%clk 0:02:58.9]} 3. c4 {[%clk 0:02:59]} 3... g6 {[%clk 0:02:59.4]} 4.
Nc3 {[%clk 0:02:58.2]} 4... Bg7 {[%clk 0:03:00]} 5. Nf3 {[%clk 0:02:59]} 5... d6
{[%clk 0:03:00.2]} 6. O-O {[%clk 0:02:59]} 6... e5 {[%clk 0:03:00.5]} 7. d3
{[%clk 0:02:58.6]} 7... Nge7 {[%clk 0:03:00.5]} 8. Rb1 {[%clk 0:02:58.8]} 8...
a5 {[%clk 0:03:00.3]} 9. Nd2 {[%clk 0:02:55.6]} 9... O-O {[%clk 0:02:59.9]} 10.
b3 {[%clk 0:02:44.3]} 10... Rb8 {[%clk 0:02:56.7]} 11. Bb2 {[%clk 0:02:42.4]}
11... Be6 {[%clk 0:02:53]} 12. Nd5 {[%clk 0:02:41.8]} 12... b5 {[%clk
0:02:52.9]} 13. f4 {[%clk 0:02:39.6]} 13... f5 {[%clk 0:02:38.2]} 14. e4 {[%clk
0:02:20]} 14... Kh8 {[%clk 0:02:35.8]} 15. Nf3 {[%clk 0:02:16.7]} 15... Bg8
{[%clk 0:02:30.3]} 16. Qd2 {[%clk 0:02:02]} 16... Nd4 {[%clk 0:02:27.7]} 17.
Nxd4 {[%clk 0:01:46.1]} 17... exd4 {[%clk 0:02:18.5]} 18. Nxe7 {[%clk
0:01:39.9]} 18... Qxe7 {[%clk 0:02:19.4]} 19. exf5 {[%clk 0:01:35.6]} 19... bxc4
{[%clk 0:02:11.8]} 20. bxc4 {[%clk 0:01:32.1]} 20... gxf5 {[%clk 0:02:04.4]} 21.
Rfe1 {[%clk 0:01:27.3]} 21... Qc7 {[%clk 0:01:57.3]} 22. Ba3 {[%clk 0:01:11.1]}
22... Bf6 {[%clk 0:01:40]} 23. Rb5 {[%clk 0:00:58.7]} 23... Bf7 {[%clk
0:01:33.5]} 24. Reb1 {[%clk 0:00:56.2]} 24... Rxb5 {[%clk 0:01:20.8]} 25. cxb5
{[%clk 0:00:42.3]} 25... Qb6 {[%clk 0:01:16.2]} 26. Bc6 {[%clk 0:00:38.3]} 26...
Rc8 {[%clk 0:01:09]} 27. Qd1 {[%clk 0:00:33.6]} 27... Bxa2 {[%clk 0:01:05.3]}
28. Rb2 {[%clk 0:00:32.6]} 28... Bf7 {[%clk 0:01:01]} 29. Bd7 {[%clk 0:00:28.5]}
29... Rd8 {[%clk 0:00:54.7]} 30. Bxf5 {[%clk 0:00:28.5]} 30... c4 {[%clk
0:00:54.2]} 31. dxc4 {[%clk 0:00:28.5]} 31... d3+ {[%clk 0:00:50.3]} 32. Kg2
{[%clk 0:00:27.7]} 32... Bxc4 {[%clk 0:00:37.3]} 33. Bxd3 {[%clk 0:00:23.1]}
33... Bd5+ {[%clk 0:00:27.6]} 34. Kf1 {[%clk 0:00:17]} 34... Qe3 {[%clk
0:00:07.1]} 35. Be2 {[%clk 0:00:04.4]} 35... Bd4 {[%clk 0:00:05.4]} 36. Qxd4+
{[%clk 0:00:03.2]} 36... Qxd4 {[%clk 0:00:05.3]} 37. Rc2 {[%clk 0:00:02.8]}
37... Qa1+ {[%clk 0:00:05.1]} 38. Bc1 {[%clk 0:00:02.3]} 38... Be4 {[%clk
0:00:03.1]} 39. Rc7 {[%clk 0:00:01.8]} 39... Kg8 {[%clk 0:00:03]} 0-1

[Event "Late-Titled-Tuesday-Blitz-March-19-2024"]
[Site "Chess.com"]
[Date "2024.03.19"]
[Round "10"]
[White "Stanbad1"]
[Black "Fonsofan"]
[Result "1-0"]
[WhiteElo "2621"]
[BlackElo "2738"]
[TimeControl "180+1"]
[EndTime "15:54:22 PDT"]
[Termination "Stanbad1 won on time"]

1. d4 {[%clk 0:03:00.9]} 1... b5 {[%clk 0:02:59.4]} 2. Bf4 {[%clk 0:02:56.7]}
2... Bb7 {[%clk 0:02:57.7]} 3. e3 {[%clk 0:02:57.2]} 3... e6 {[%clk 0:02:57.8]}
4. Nf3 {[%clk 0:02:53.6]} 4... a6 {[%clk 0:02:55.7]} 5. Nbd2 {[%clk 0:02:50]}
5... f5 {[%clk 0:02:55.8]} 6. Bd3 {[%clk 0:02:34.6]} 6... Nf6 {[%clk 0:02:56.1]}
7. O-O {[%clk 0:02:34.4]} 7... Bd6 {[%clk 0:02:56.4]} 8. Ne5 {[%clk 0:02:33.4]}
8... O-O {[%clk 0:02:55.6]} 9. c4 {[%clk 0:02:32.3]} 9... b4 {[%clk 0:02:45.7]}
10. c5 {[%clk 0:02:32.2]} 10... Be7 {[%clk 0:02:42.7]} 11. Qb3 {[%clk
0:02:31.2]} 11... a5 {[%clk 0:02:41.9]} 12. a3 {[%clk 0:02:29.9]} 12... Bd5
{[%clk 0:02:38.8]} 13. Ndc4 {[%clk 0:02:28.8]} 13... d6 {[%clk 0:02:37.5]} 14.
cxd6 {[%clk 0:02:26]} 14... cxd6 {[%clk 0:02:37.3]} 15. Nf3 {[%clk 0:02:26.1]}
15... Nc6 {[%clk 0:02:35.2]} 16. Qa4 {[%clk 0:02:21.3]} 16... Nh5 {[%clk
0:02:32.5]} 17. Ncd2 {[%clk 0:02:14.5]} 17... Nxf4 {[%clk 0:02:22.6]} 18. exf4
{[%clk 0:02:15.4]} 18... Qb6 {[%clk 0:02:22.8]} 19. Bc4 {[%clk 0:02:09.1]} 19...
Nxd4 {[%clk 0:02:13.9]} 20. Bxd5 {[%clk 0:02:07.4]} 20... exd5 {[%clk
0:02:14.8]} 21. Rfe1 {[%clk 0:02:02.9]} 21... Bf6 {[%clk 0:02:12.7]} 22. axb4
{[%clk 0:01:58.9]} 22... Qxb4 {[%clk 0:01:24.3]} 23. Qd1 {[%clk 0:01:01.7]}
23... Qxb2 {[%clk 0:01:18.6]} 24. Ra4 {[%clk 0:00:59.4]} 24... Nb5 {[%clk
0:01:08.9]} 25. Nb1 {[%clk 0:00:50.2]} 25... Nc7 {[%clk 0:00:40.6]} 26. Re2
{[%clk 0:00:45.6]} 26... Qb6 {[%clk 0:00:37.3]} 27. g3 {[%clk 0:00:44.2]} 27...
Rfe8 {[%clk 0:00:37.7]} 28. Rc2 {[%clk 0:00:33]} 28... Re4 {[%clk 0:00:37.1]}
29. Raa2 {[%clk 0:00:30.5]} 29... Rae8 {[%clk 0:00:36.2]} 30. Nc3 {[%clk
0:00:29]} 30... Bxc3 {[%clk 0:00:26.7]} 31. Rxc3 {[%clk 0:00:29.9]} 31... d4
{[%clk 0:00:24.3]} 32. Rb3 {[%clk 0:00:27.3]} 32... Qc5 {[%clk 0:00:22.5]} 33.
Kg2 {[%clk 0:00:26.7]} 33... Qd5 {[%clk 0:00:19.3]} 34. Rd2 {[%clk 0:00:21.6]}
34... h6 {[%clk 0:00:11.7]} 35. h4 {[%clk 0:00:16.8]} 35... Ne6 {[%clk 0:00:12]}
36. Kh2 {[%clk 0:00:16.2]} 36... Kh7 {[%clk 0:00:11.2]} 37. Ra3 {[%clk
0:00:15.6]} 37... Ra8 {[%clk 0:00:10.3]} 38. Rda2 {[%clk 0:00:15.7]} 38... Qc5
{[%clk 0:00:06.6]} 39. Ra4 {[%clk 0:00:16.2]} 39... Ra7 {[%clk 0:00:03.2]} 40.
R2a3 {[%clk 0:00:16.7]} 40... Qb6 {[%clk 0:00:01.9]} 41. Ra2 {[%clk 0:00:16.7]}
41... Nc5 {[%clk 0:00:02.5]} 42. Rxd4 {[%clk 0:00:16.1]} 42... Rxd4 {[%clk
0:00:03.2]} 43. Qxd4 {[%clk 0:00:16.6]} 43... a4 {[%clk 0:00:03.6]} 44. Ra3
{[%clk 0:00:16.7]} 44... Qc6 {[%clk 0:00:02.7]} 45. Qc4 {[%clk 0:00:15.5]} 45...
Ra6 {[%clk 0:00:02.1]} 46. Nd4 {[%clk 0:00:15.2]} 46... Qe4 {[%clk 0:00:01.6]}
47. Re3 {[%clk 0:00:15.3]} 1-0

[Event "Late-Titled-Tuesday-Blitz-March-19-2024"]
[Site "Chess.com"]
[Date "2024.03.19"]
[Round "10"]
[White "stepanosinovsky"]
[Black "zverr1"]
[Result "1-0"]
[WhiteElo "2373"]
[BlackElo "2530"]
[TimeControl "180+1"]
[EndTime "15:54:26 PDT"]
[Termination "stepanosinovsky won by checkmate"]

1. e4 {[%clk 0:03:00.9]} 1... c5 {[%clk 0:02:59.9]} 2. Nf3 {[%clk 0:02:59.8]}
2... e6 {[%clk 0:02:59.7]} 3. d3 {[%clk 0:02:58.3]} 3... d5 {[%clk 0:02:58.8]}
4. Nbd2 {[%clk 0:02:59.2]} 4... Nf6 {[%clk 0:02:58.1]} 5. g3 {[%clk 0:02:59.5]}
5... Be7 {[%clk 0:02:56.2]} 6. Bg2 {[%clk 0:02:59.8]} 6... O-O {[%clk
0:02:56.9]} 7. O-O {[%clk 0:02:59.7]} 7... Nc6 {[%clk 0:02:57.5]} 8. Re1 {[%clk
0:02:59.7]} 8... b5 {[%clk 0:02:56.8]} 9. a4 {[%clk 0:02:58.3]} 9... b4 {[%clk
0:02:55.3]} 10. exd5 {[%clk 0:02:58.1]} 10... exd5 {[%clk 0:02:50.9]} 11. d4
{[%clk 0:02:49.8]} 11... c4 {[%clk 0:02:45.2]} 12. Ne5 {[%clk 0:02:43.2]} 12...
Qc7 {[%clk 0:02:29.5]} 13. Nxc6 {[%clk 0:02:32.4]} 13... Qxc6 {[%clk 0:02:26.6]}
14. Rxe7 {[%clk 0:02:32]} 14... Be6 {[%clk 0:02:23.6]} 15. Nf3 {[%clk
0:02:03.6]} 15... h6 {[%clk 0:02:19.8]} 16. Bf4 {[%clk 0:01:44.8]} 16... Rfe8
{[%clk 0:02:15.1]} 17. Rxe8+ {[%clk 0:01:42.8]} 17... Rxe8 {[%clk 0:02:16]} 18.
Ne5 {[%clk 0:01:41.9]} 18... Qb6 {[%clk 0:02:15]} 19. h4 {[%clk 0:01:40.5]}
19... Bf5 {[%clk 0:02:12.3]} 20. c3 {[%clk 0:01:36.1]} 20... b3 {[%clk
0:02:08.1]} 21. Qc1 {[%clk 0:01:34.6]} 21... Be4 {[%clk 0:02:04.2]} 22. f3
{[%clk 0:01:32.6]} 22... Bh7 {[%clk 0:02:00.8]} 23. a5 {[%clk 0:01:32.2]} 23...
Qe6 {[%clk 0:01:59]} 24. Kh2 {[%clk 0:01:31.4]} 24... Qf5 {[%clk 0:01:57.3]} 25.
Qd2 {[%clk 0:01:29.6]} 25... Re7 {[%clk 0:01:43.8]} 26. Rc1 {[%clk 0:01:29.5]}
26... Rb7 {[%clk 0:01:42.7]} 27. g4 {[%clk 0:01:28.8]} 27... Qc8 {[%clk
0:01:41]} 28. Kg3 {[%clk 0:01:28.3]} 28... Rb5 {[%clk 0:01:37.8]} 29. Ra1 {[%clk
0:01:28.3]} 29... Qa6 {[%clk 0:01:36.9]} 30. g5 {[%clk 0:01:04.7]} 30... Nh5+
{[%clk 0:01:36.4]} 31. Kh2 {[%clk 0:01:02.1]} 31... hxg5 {[%clk 0:01:15.3]} 32.
hxg5 {[%clk 0:01:02]} 32... Rxa5 {[%clk 0:01:14.7]} 33. Rxa5 {[%clk 0:01:01.7]}
33... Qxa5 {[%clk 0:01:15.6]} 34. Bh3 {[%clk 0:01:00.7]} 34... Qa1 {[%clk
0:01:01]} 35. Qc1 {[%clk 0:00:57.8]} 35... Qa2 {[%clk 0:00:54.4]} 36. Be3 {[%clk
0:00:56.5]} 36... a5 {[%clk 0:00:46.3]} 37. Bg4 {[%clk 0:00:56.3]} 37... a4
{[%clk 0:00:29.6]} 38. Bxh5 {[%clk 0:00:17.6]} 38... a3 {[%clk 0:00:29.6]} 39.
Bxf7+ {[%clk 0:00:17.1]} 39... Kf8 {[%clk 0:00:26.2]} 40. g6 {[%clk 0:00:13.8]}
40... Bg8 {[%clk 0:00:21.3]} 41. Nd7+ {[%clk 0:00:13.3]} 41... Ke7 {[%clk
0:00:20.4]} 42. Bg5+ {[%clk 0:00:12.8]} 42... Kxd7 {[%clk 0:00:19.6]} 43. Qe3
{[%clk 0:00:13.1]} 43... Qxb2+ {[%clk 0:00:18.8]} 44. Kg3 {[%clk 0:00:13.6]}
44... Qb1 {[%clk 0:00:08.9]} 45. Qe6+ {[%clk 0:00:13.3]} 45... Kc7 {[%clk
0:00:09.1]} 46. Bf4+ {[%clk 0:00:13.6]} 46... Kd8 {[%clk 0:00:08.9]} 47. Qd6+
{[%clk 0:00:13.3]} 47... Kc8 {[%clk 0:00:08.9]} 48. Qc7# {[%clk 0:00:13.8]} 1-0

[Event "Late-Titled-Tuesday-Blitz-March-19-2024"]
[Site "Chess.com"]
[Date "2024.03.19"]
[Round "10"]
[White "AsterPhoenix"]
[Black "Revan_2002"]
[Result "0-1"]
[WhiteElo "2646"]
[BlackElo "2571"]
[TimeControl "180+1"]
[EndTime "15:54:27 PDT"]
[Termination "Revan_2002 won by resignation"]

1. e4 {[%clk 0:03:00.9]} 1... g6 {[%clk 0:02:58.1]} 2. d4 {[%clk 0:03:00.2]}
2... Bg7 {[%clk 0:02:58.6]} 3. Nc3 {[%clk 0:02:57.4]} 3... d6 {[%clk 0:02:59]}
4. Nf3 {[%clk 0:02:56.7]} 4... Nc6 {[%clk 0:02:50.6]} 5. Be2 {[%clk 0:02:55.5]}
5... Bg4 {[%clk 0:02:49.9]} 6. Be3 {[%clk 0:02:55.2]} 6... Bxf3 {[%clk
0:02:49.7]} 7. Bxf3 {[%clk 0:02:55.1]} 7... e5 {[%clk 0:02:50.4]} 8. d5 {[%clk
0:02:42.5]} 8... Nd4 {[%clk 0:02:50.3]} 9. h4 {[%clk 0:02:42.2]} 9... h5 {[%clk
0:02:45.4]} 10. Qd2 {[%clk 0:02:35.3]} 10... Ne7 {[%clk 0:02:37.8]} 11. O-O-O
{[%clk 0:02:31.5]} 11... c5 {[%clk 0:02:36.9]} 12. Kb1 {[%clk 0:02:21.3]} 12...
a6 {[%clk 0:02:27.6]} 13. Ne2 {[%clk 0:02:16.1]} 13... b5 {[%clk 0:02:26.3]} 14.
c3 {[%clk 0:02:07.8]} 14... Nxf3 {[%clk 0:02:25.5]} 15. gxf3 {[%clk 0:02:08.7]}
15... a5 {[%clk 0:02:24.8]} 16. f4 {[%clk 0:02:04.5]} 16... exf4 {[%clk
0:02:20.2]} 17. Nxf4 {[%clk 0:02:02.4]} 17... a4 {[%clk 0:02:19.4]} 18. Ne2
{[%clk 0:01:57]} 18... Rb8 {[%clk 0:02:16.2]} 19. f4 {[%clk 0:01:54.7]} 19... b4
{[%clk 0:02:15.8]} 20. c4 {[%clk 0:01:54.4]} 20... a3 {[%clk 0:02:07.4]} 21. b3
{[%clk 0:01:54.2]} 21... Ng8 {[%clk 0:01:54.1]} 22. e5 {[%clk 0:01:33.9]} 22...
Nh6 {[%clk 0:01:53.9]} 23. Ng3 {[%clk 0:01:30.8]} 23... Ng4 {[%clk 0:01:52.8]}
24. Ne4 {[%clk 0:01:26.7]} 24... dxe5 {[%clk 0:01:46.6]} 25. Bxc5 {[%clk
0:01:23.8]} 25... f5 {[%clk 0:01:41.3]} 26. Nd6+ {[%clk 0:01:07.2]} 26... Kd7
{[%clk 0:01:41.5]} 27. fxe5 {[%clk 0:00:58.6]} 27... Nxe5 {[%clk 0:01:36.9]} 28.
Bxb4 {[%clk 0:00:49]} 28... Qf6 {[%clk 0:01:29.5]} 29. Qc3 {[%clk 0:00:14.3]}
29... f4 {[%clk 0:00:58.7]} 30. Nb5 {[%clk 0:00:13]} 30... Rhc8 {[%clk 0:00:37]}
31. Bxa3 {[%clk 0:00:10.3]} 31... Rxb5 {[%clk 0:00:34.9]} 32. Bb2 {[%clk
0:00:07.8]} 32... Qf5+ {[%clk 0:00:32.5]} 33. Qc2 {[%clk 0:00:07.6]} 33... Qxc2+
{[%clk 0:00:31.4]} 34. Kxc2 {[%clk 0:00:08.5]} 34... Nxc4 {[%clk 0:00:31]} 35.
Bxg7 {[%clk 0:00:06]} 35... Ne3+ {[%clk 0:00:30.8]} 36. Kb1 {[%clk 0:00:05]}
36... Nxd1 {[%clk 0:00:28.5]} 37. Rxd1 {[%clk 0:00:05.9]} 37... Rg8 {[%clk
0:00:17.4]} 38. Bh6 {[%clk 0:00:06]} 38... f3 {[%clk 0:00:12.1]} 39. Rf1 {[%clk
0:00:06.2]} 39... Rxd5 {[%clk 0:00:11.9]} 40. Rxf3 {[%clk 0:00:06.5]} 40... Re8
{[%clk 0:00:09.6]} 41. Rf2 {[%clk 0:00:04.6]} 41... Re4 {[%clk 0:00:08.6]} 42.
Bg5 {[%clk 0:00:04.2]} 42... Kc6 {[%clk 0:00:07.3]} 43. Kb2 {[%clk 0:00:04.7]}
43... Rf5 {[%clk 0:00:05.5]} 44. Rc2+ {[%clk 0:00:04.4]} 44... Rc5 {[%clk
0:00:05.2]} 45. Re2 {[%clk 0:00:05]} 45... Rxe2+ {[%clk 0:00:04.7]} 0-1

[Event "Late-Titled-Tuesday-Blitz-March-19-2024"]
[Site "Chess.com"]
[Date "2024.03.19"]
[Round "10"]
[White "esteban062000"]
[Black "gorgeous1083"]
[Result "1-0"]
[WhiteElo "2170"]
[BlackElo "2053"]
[TimeControl "180+1"]
[EndTime "15:54:27 PDT"]
[Termination "esteban062000 won on time"]

1. e4 {[%clk 0:03:00.9]} 1... e6 {[%clk 0:02:59.4]} 2. e5 {[%clk 0:03:00.9]}
2... d5 {[%clk 0:02:58.3]} 3. exd6 {[%clk 0:03:01.8]} 3... Bxd6 {[%clk
0:02:57.4]} 4. d4 {[%clk 0:03:02.6]} 4... Nf6 {[%clk 0:02:57.2]} 5. Nf3 {[%clk
0:03:03.3]} 5... h6 {[%clk 0:02:55.6]} 6. Bd3 {[%clk 0:03:00.1]} 6... b6 {[%clk
0:02:51.4]} 7. O-O {[%clk 0:02:58.2]} 7... Bb7 {[%clk 0:02:51.5]} 8. Nc3 {[%clk
0:02:58.4]} 8... O-O {[%clk 0:02:51.5]} 9. Re1 {[%clk 0:02:58.4]} 9... Nbd7
{[%clk 0:02:46.4]} 10. Nb5 {[%clk 0:02:57.5]} 10... a6 {[%clk 0:02:36]} 11. Nxd6
{[%clk 0:02:55.8]} 11... cxd6 {[%clk 0:02:36.3]} 12. c3 {[%clk 0:02:40.9]} 12...
b5 {[%clk 0:02:35.2]} 13. h3 {[%clk 0:02:31.4]} 13... Nb6 {[%clk 0:02:33.2]} 14.
Bf4 {[%clk 0:02:26.8]} 14... Nbd5 {[%clk 0:02:23.5]} 15. Bh2 {[%clk 0:02:25.9]}
15... Re8 {[%clk 0:02:21.4]} 16. Bc2 {[%clk 0:02:25.5]} 16... Rc8 {[%clk
0:02:10.2]} 17. Qd3 {[%clk 0:02:24.8]} 17... b4 {[%clk 0:02:01.9]} 18. c4 {[%clk
0:02:12.2]} 18... Nb6 {[%clk 0:02:00.2]} 19. b3 {[%clk 0:02:11.1]} 19... a5
{[%clk 0:01:50.4]} 20. Bg3 {[%clk 0:01:58.4]} 20... Bxf3 {[%clk 0:01:20.4]} 21.
Qxf3 {[%clk 0:01:46]} 21... d5 {[%clk 0:01:18.8]} 22. c5 {[%clk 0:01:38.9]}
22... Nbd7 {[%clk 0:01:13.9]} 23. Bd6 {[%clk 0:00:36.8]} 23... Nb8 {[%clk
0:01:06.4]} 24. Qd3 {[%clk 0:00:31.1]} 24... Rc6 {[%clk 0:00:41.9]} 25. Be5
{[%clk 0:00:29.1]} 25... Nbd7 {[%clk 0:00:41.5]} 26. Bg3 {[%clk 0:00:25.1]}
26... Qc8 {[%clk 0:00:38.6]} 27. Qb5 {[%clk 0:00:24.6]} 27... Qa6 {[%clk
0:00:36.7]} 28. Qxa6 {[%clk 0:00:22.2]} 28... Rxa6 {[%clk 0:00:36.6]} 29. Bd3
{[%clk 0:00:22.8]} 29... Raa8 {[%clk 0:00:31.8]} 30. f3 {[%clk 0:00:23.1]} 30...
Rec8 {[%clk 0:00:29.4]} 31. Bb5 {[%clk 0:00:18]} 31... Nxc5 {[%clk 0:00:22.3]}
32. dxc5 {[%clk 0:00:18.9]} 32... Rxc5 {[%clk 0:00:22.4]} 33. Ba4 {[%clk
0:00:16.9]} 33... Rac8 {[%clk 0:00:21.5]} 34. Bf4 {[%clk 0:00:17.1]} 34... Rc2
{[%clk 0:00:20.6]} 35. Rec1 {[%clk 0:00:17]} 35... g5 {[%clk 0:00:14.4]} 36. Be3
{[%clk 0:00:15.7]} 36... Nh5 {[%clk 0:00:10.4]} 37. Bd7 {[%clk 0:00:12.9]} 37...
R8c7 {[%clk 0:00:09.2]} 38. Bb5 {[%clk 0:00:12.4]} 38... Ng3 {[%clk 0:00:08]}
39. Bd3 {[%clk 0:00:11.7]} 39... R2c3 {[%clk 0:00:07.1]} 40. Rxc3 {[%clk
0:00:11.7]} 40... Rxc3 {[%clk 0:00:07.2]} 41. Rd1 {[%clk 0:00:11.9]} 41... e5
{[%clk 0:00:04.8]} 42. Bf2 {[%clk 0:00:11.9]} 42... Nh5 {[%clk 0:00:02.9]} 43.
Bb1 {[%clk 0:00:09]} 43... Nf4 {[%clk 0:00:02.6]} 44. Bg3 {[%clk 0:00:07.9]}
44... Ne2+ {[%clk 0:00:02.2]} 45. Kf2 {[%clk 0:00:08.5]} 45... Nxg3 {[%clk
0:00:02.6]} 46. Rxd5 {[%clk 0:00:09.1]} 46... Nh5 {[%clk 0:00:01.2]} 47. Rxe5
{[%clk 0:00:09.3]} 1-0